bitfinex-derivatives/quotes_SOLF0:USTF0_20250131
["timestamp","ask_amount","ask_price","bid_price","bid_amount"]
[1738296560145,0.02975975,235.54,235.5,0.03064424]
[1738296560345,1.89975975,235.54,235.5,4.27704424]
[1738296561147,1.89975975,235.54,235.5,0.03064424]
[1738296563948,6.14545975,235.54,235.5,0.03064424]
[1738296565451,6.14545975,235.54,235.5,4.27704424]
[1738296566350,1.89975975,235.54,235.5,4.27704424]
[1738296567646,1.89975975,235.54,235.51,4.2462]
[1738296568245,1.89975975,235.54,235.5,0.03064424]
[1738296568550,1.89975975,235.54,235.53,11.73113426]
[1738296577457,0.02975975,235.54,235.53,11.73113426]
[1738296579461,5.975e-05,235.54,235.53,11.73113426]
[1738296579753,1.3601,235.64,235.53,7.48523426]
[1738296579950,1.3601,235.64,235.59,7.48523426]
[1738296580358,1.3601,235.64,235.61,4.2443]
[1738296582262,1.3601,235.64,235.62,4.2443]
[1738296583059,0.02747775,235.65,235.62,4.2443]
[1738296583549,0.02747775,235.65,235.61,7.48523426]
[1738296583753,0.02747775,235.65,235.63,4.244]
[1738296584054,0.02747775,235.65,235.63,7.48523426]
[1738296584253,0.02747775,235.65,235.64,4.2439]
[1738296590760,0.02747775,235.65,235.62,4.2441]
[1738296591759,0.02747775,235.65,235.6,0.032436]
[1738296592270,0.02747775,235.65,235.62,4.2443]
[1738296593863,0.02747775,235.65,235.63,4.2441]
[1738296595465,0.02747775,235.65,235.6,0.032436]
[1738296595670,0.02747775,235.65,235.61,7.48523426]
[1738296596967,0.02747775,235.65,235.63,7.48523426]
[1738296597164,0.02747775,235.65,235.64,4.2439]
[1738296601268,2.8166,235.73,235.72,4.2425]
[1738296601565,2.8166,235.73,235.7,7.48523426]
[1738296602770,2.8166,235.73,235.7,11.72793426]
[1738296603471,2.8166,235.73,235.7,4.2427]
[1738296605069,2.8166,235.73,235.69,0.03248174]
[1738296605269,10.30183426,235.73,235.64,7.48523426]
[1738296606076,4.2427,235.71,235.66,4.2435]
[1738296606374,4.27206413,235.71,235.66,4.27254469]
[1738296613373,0.02936413,235.71,235.66,4.27254469]
[1738296613675,7.51459839,235.71,235.66,0.02904469]
[1738296614978,4.2432,235.68,235.66,0.02904469]
[1738296615473,4.2434,235.67,235.62,4.2442]
[1738296616778,4.2434,235.67,235.62,4.27429121]
[1738296617281,4.2434,235.67,235.63,4.2441]
[1738296619681,4.2436,235.66,235.62,11.75962547]
[1738296620978,7.48523426,235.69,235.62,11.75962547]
[1738296621280,4.2434,235.67,235.62,11.75962547]
[1738296624782,7.48523426,235.69,235.62,11.75962547]
[1738296624976,4.2436,235.66,235.62,11.75962547]
[1738296630478,4.2434,235.68,235.62,11.75962547]
[1738296630679,4.2434,235.68,235.63,4.2441]
[1738296631783,0.02936413,235.71,235.64,7.48523426]
[1738296631983,4.2429,235.7,235.66,4.2434]
[1738296634278,4.2429,235.7,235.64,7.48523426]
[1738296634583,4.2429,235.7,235.65,4.2437]
[1738296636387,0.02936413,235.71,235.65,4.2437]
[1738296636687,4.243,235.69,235.65,4.2437]
[1738296646889,4.243,235.69,235.66,7.48523426]
[1738296647693,4.2429,235.7,235.66,7.48523426]
[1738296652997,0.02936413,235.71,235.66,7.48523426]
[1738296653296,4.243,235.69,235.66,7.48523426]
[1738296655295,0.02936413,235.71,235.66,11.72863426]
[1738296656897,0.02936413,235.71,235.66,7.48523426]
[1738296657103,4.243,235.7,235.66,7.48523426]
[1738296658298,4.243,235.7,235.66,11.72873426]
[1738296661404,0.02936413,235.71,235.66,11.72873426]
[1738296661605,4.2429,235.7,235.66,11.72873426]
[1738296662406,0.02936413,235.71,235.68,7.48523426]
[1738296662707,0.02936413,235.71,235.67,4.2433]
[1738296663006,0.02936413,235.71,235.67,4.27021104]
[1738296664211,7.48523426,235.69,235.67,0.02691104]
[1738296665110,4.2432,235.68,235.67,0.02691104]
[1738296666613,4.2429,235.7,235.67,0.02691104]
[1738296667912,4.243,235.69,235.67,0.02691104]
[1738296669511,0.02936413,235.71,235.67,7.5121453]
[1738296671214,0.02936413,235.71,235.67,11.7555453]
[1738296672617,0.02936413,235.71,235.67,7.5121453]
[1738296673316,4.27206413,235.71,235.67,7.5121453]
[1738296678023,7.51459839,235.71,235.67,0.02691104]
[1738296678218,7.48523426,235.69,235.67,0.02691104]
[1738296678424,7.48523426,235.69,235.61,7.48523426]
[1738296679024,7.48523426,235.67,235.59,7.48523426]
[1738296679627,7.51328604,235.65,235.61,0.02644985]
[1738296681125,4.2443,235.62,235.61,0.02644985]
[1738296681928,4.2452,235.58,235.55,7.48523426]
[1738296682227,7.48523426,235.61,235.54,3.73845788]
[1738296682629,4.2448,235.59,235.54,3.73845788]
[1738296682928,7.48523426,235.61,235.54,3.73845788]
[1738296683129,0.02722544,235.59,235.54,3.73845788]
[1738296683727,4.2452,235.57,235.55,7.48523426]
[1738296684231,0.02722544,235.59,235.55,7.48523426]
[1738296684532,0.02722544,235.59,235.58,7.48523426]
[1738296709844,0.02722544,235.59,235.58,11.73023426]
[1738296710845,0.02722544,235.59,235.58,7.48523426]
[1738296713445,0.02722544,235.59,235.58,11.73023426]
[1738296719446,0.02722544,235.59,235.54,11.22369214]
[1738296719646,0.02722544,235.59,235.54,3.73845788]
[1738296720345,4.2452,235.57,235.54,3.73845788]
[1738296720547,0.02722544,235.59,235.54,3.73845788]
[1738296720853,7.48523426,235.58,235.5,7.48523426]
[1738296721252,4.2458,235.54,235.5,7.48523426]
[1738296722353,4.246,235.53,235.48,7.48523426]
[1738296722754,4.27442459,235.53,235.48,7.48523426]
[1738296724656,4.27442459,235.53,235.5,7.48523426]
[1738296726458,0.02842459,235.53,235.52,7.48523426]
[1738296728151,0.02842459,235.53,235.52,11.73133426]
[1738296731553,4.2445,235.61,235.52,7.48523426]
[1738296731759,4.2445,235.61,235.59,7.48523426]
[1738296737763,4.2445,235.61,235.58,0.02693073]
[1738296738061,1.41732412,235.62,235.58,0.02693073]
[1738296738263,4.2447,235.6,235.58,0.02693073]
[1738296738957,4.2448,235.59,235.58,0.02693073]
[1738296739161,1.41732412,235.62,235.55,7.48523426]
[1738296741064,4.2452,235.58,235.55,7.48523426]
[1738296751464,4.2452,235.57,235.53,7.48523426]
[1738296751668,7.48523426,235.61,235.51,7.48523426]
[1738296752172,0.02739942,235.58,235.51,7.48523426]
[1738296752866,4.2454,235.56,235.51,7.48523426]
[1738296754363,4.2454,235.56,235.53,7.48523426]
[1738296754570,4.2457,235.54,235.51,7.48523426]
[1738296755569,0.02782179,235.55,235.51,7.48523426]
[1738296756167,0.02782179,235.55,235.51,11.73153426]
[1738296756671,0.02782179,235.55,235.51,7.48523426]
[1738296757570,0.02782179,235.55,235.51,11.73143426]
[1738296761875,0.02782179,235.55,235.51,7.48523426]
[1738296762972,0.02782179,235.55,235.53,7.48523426]
[1738296765976,4.27342179,235.55,235.53,7.48523426]
[1738296775283,4.2457,235.54,235.53,7.48523426]
[1738296778185,0.02782179,235.55,235.49,7.48523426]
[1738296779587,4.2462,235.52,235.51,7.48523426]
[1738296784795,7.51305605,235.55,235.47,7.48523426]
[1738296784995,7.48523426,235.55,235.47,7.48523426]
[1738296785292,0.02758634,235.53,235.47,7.48523426]
[1738296785894,0.02758634,235.53,235.45,7.48523426]
[1738296786095,4.2469,235.48,235.45,7.48523426]
[1738296786286,0.02758634,235.53,235.45,7.48523426]
[1738296786489,7.48523426,235.52,235.45,7.48523426]
[1738296786695,4.2465,235.5,235.45,7.48523426]
[1738296786895,0.02758634,235.53,235.45,7.48523426]
[1738296787590,4.2463,235.51,235.45,7.48523426]
[1738296787892,0.02758634,235.53,235.45,7.48523426]
[1738296788489,4.2463,235.51,235.49,7.48523426]
[1738296788694,0.02758634,235.53,235.49,7.48523426]
[1738296789091,4.2463,235.51,235.49,7.48523426]
[1738296789797,0.02758634,235.53,235.49,7.48523426]
[1738296789997,0.02758634,235.53,235.52,7.48523426]
[1738296795601,4.27348634,235.53,235.52,7.48523426]
[1738296805201,4.27348634,235.53,235.46,1.4084]
[1738296805410,7.48523426,235.5,235.4,7.48523426]
[1738296805608,7.48523426,235.48,235.4,7.48523426]
[1738296805807,4.2478,235.43,235.4,7.48523426]
[1738296806805,4.2479,235.42,235.4,7.48523426]
[1738296808606,0.02684153,235.47,235.4,7.48523426]
[1738296808811,7.48523426,235.46,235.38,7.48523426]
[1738296810413,7.48523426,235.46,235.4,7.48523426]
[1738296811013,7.48523426,235.46,235.38,7.48523426]
[1738296812210,4.2483,235.4,235.38,7.48523426]
[1738296816220,0.03057245,235.41,235.38,7.48523426]
[1738296816417,4.27867245,235.41,235.38,7.48523426]
[1738296818517,0.03057245,235.41,235.38,7.48523426]
[1738296818717,0.03057245,235.41,235.34,4.05122912]
[1738296818718,0.03057245,235.41,235.4,7.48523426]
[1738296830626,4.27867245,235.41,235.4,7.48523426]
[1738296848038,0.03057245,235.41,235.38,7.48523426]
[1738296848231,7.48523426,235.44,235.34,7.48523426]
[1738296848429,7.51788953,235.42,235.34,7.48523426]
[1738296848835,7.48523426,235.4,235.32,7.48523426]
[1738296849236,0.0271554,235.38,235.32,7.48523426]
[1738296850340,4.2492,235.35,235.34,7.48523426]
[1738296856436,4.2494,235.34,235.32,7.48523426]
[1738296862647,4.2491,235.36,235.32,7.48523426]
[1738296862844,0.0271554,235.38,235.35,7.48523426]
[1738296864148,4.249,235.36,235.35,7.48523426]
[1738296868849,4.2498,235.32,235.31,7.48523426]
[1738296870549,0.0271554,235.38,235.31,7.48523426]
[1738296870750,0.0271554,235.38,235.33,7.48523426]
[1738296871353,4.2493,235.35,235.33,7.48523426]
[1738296878255,0.0271554,235.38,235.33,7.48523426]
[1738296878458,4.2489,235.37,235.23,1.4651]
[1738296878756,2.66,235.4,235.23,1.4651]
[1738296878955,2.66,235.4,235.36,7.48523426]
[1738296879357,2.69167099,235.4,235.36,7.48523426]
[1738296879654,4.2488,235.37,235.36,7.48523426]
[1738296879855,2.69167099,235.4,235.34,7.48523426]
[1738296880055,2.66,235.4,235.34,7.48523426]
[1738296880356,0.03208351,235.39,235.34,7.48523426]
[1738296881158,4.2492,235.35,235.34,7.48523426]
[1738296884157,0.03208351,235.39,235.34,7.48523426]
[1738296884359,4.249,235.36,235.34,7.48523426]
[1738296885461,0.03208351,235.39,235.32,7.48523426]
[1738296885662,7.48523426,235.39,235.3,7.48523426]
[1738296885960,4.2496,235.33,235.3,7.48523426]
[1738296888060,0.02831842,235.38,235.32,7.48523426]
[1738296888357,7.48523426,235.39,235.32,7.48523426]
[1738296888565,0.02737154,235.37,235.32,7.48523426]
[1738296888865,4.2495,235.33,235.32,7.48523426]
[1738296889863,4.2493,235.34,235.32,7.48523426]
[1738296890065,0.02737154,235.37,235.32,7.48523426]
[1738296890258,0.02737154,235.37,235.36,7.48523426]
[1738296890865,0.02737154,235.37,235.34,7.48523426]
[1738296892165,4.27617154,235.37,235.34,7.48523426]
[1738296897270,0.02737154,235.37,235.34,7.48523426]
[1738296900873,4.249,235.36,235.32,7.48523426]
[1738296901271,4.2494,235.34,235.32,7.48523426]
[1738296901575,7.48523426,235.35,235.28,7.48523426]
[1738296901876,7.48523426,235.35,235.26,7.48523426]
[1738296902170,4.2499,235.31,235.26,7.48523426]
[1738296902373,4.2499,235.31,235.28,7.48523426]
[1738296902769,0.03100477,235.33,235.28,7.48523426]
[1738296902974,4.28060477,235.33,235.28,7.48523426]
[1738296903475,0.03100477,235.33,235.28,7.48523426]
[1738296906177,4.28050477,235.33,235.28,7.48523426]
[1738296906579,0.03100477,235.33,235.28,7.48523426]
[1738296906782,4.2502,235.3,235.26,7.48523426]
[1738296906983,2.66,235.31,235.26,7.48523426]
[1738296907178,2.66,235.31,235.22,1.4554]
[1738296907179,2.66,235.31,235.24,7.48523426]
[1738296907582,4.2505,235.28,235.24,7.48523426]
[1738296908081,4.2507,235.27,235.24,7.48523426]
[1738296908878,4.27832091,235.28,235.24,7.48523426]
[1738296909180,0.02792091,235.28,235.26,7.48523426]
[1738296910275,4.27832091,235.28,235.26,7.48523426]
[1738296910475,4.27832091,235.28,235.24,7.48523426]
[1738296912690,4.2508,235.27,235.24,7.48523426]
[1738296914689,4.2509,235.26,235.24,7.48523426]
[1738296915691,4.2509,235.26,235.22,7.48523426]
[1738296915884,0.02792091,235.28,235.22,7.48523426]
[1738296916080,4.251,235.25,235.22,7.48523426]
[1738296917287,4.2507,235.27,235.22,7.48523426]
[1738296917589,0.02792091,235.28,235.22,7.48523426]
[1738296917785,4.2512,235.24,235.22,7.48523426]
[1738296918488,4.2516,235.22,235.2,7.48523426]
[1738296919187,4.2517,235.21,235.2,7.48523426]
[1738296920494,4.2517,235.21,235.18,7.48523426]
[1738296920695,4.2519,235.2,235.18,7.48523426]
[1738296921394,0.03128123,235.23,235.18,7.48523426]
[1738296921596,4.252,235.19,235.18,7.48523426]
[1738296922588,7.48523426,235.19,235.1,7.48523426]
[1738296922792,0.03128123,235.23,235.1,7.48523426]
[1738296922793,7.48523426,235.17,235.1,7.48523426]
[1738296923193,4.28018194,235.16,235.1,7.48523426]
[1738296923893,4.253,235.14,235.1,7.48523426]
[1738296924095,0.02758194,235.16,235.08,7.48523426]
[1738296924692,7.48523426,235.15,235.05,4.2544]
[1738296924898,7.48523426,235.13,235.06,7.48523426]
[1738296925292,4.2535,235.11,235.06,7.48523426]
[1738296925797,4.2535,235.11,235.08,7.48523426]
[1738296926193,7.48523426,235.09,234.97,7.48523426]
[1738296926400,4.3216,235.17,234.84,265.18082333]
[1738296926401,7.48523426,234.99,234.9,10.40213426]
[1738296926600,7.48523426,234.99,234.9,7.48523426]
[1738296926792,7.48523426,235.03,234.94,7.48523426]
[1738296927195,0.02977531,235.01,234.94,7.48523426]
[1738296927494,0.02977531,235.01,234.96,7.48523426]
[1738296927705,0.02977531,235.01,234.98,7.48523426]
[1738296927900,0.02977531,235.01,235.0,7.48523426]
[1738296928292,0.02977531,235.01,234.98,7.48523426]
[1738296929306,0.02977531,235.01,235.0,7.48523426]
[1738296929999,0.02977531,235.01,234.98,7.48523426]
[1738296933800,0.02977531,235.01,235.0,7.48523426]
[1738296936606,0.02977531,235.01,235.0,11.74073426]
[1738296942102,7.48523426,235.15,235.05,4.2544]
[1738296942302,2.66,235.14,235.08,7.48523426]
[1738296942809,2.66,235.14,235.1,7.48523426]
[1738296943205,2.68739068,235.14,235.1,7.51650343]
[1738296943408,2.68739068,235.14,235.12,7.48523426]
[1738296944605,0.02739068,235.14,235.12,7.48523426]
[1738296949206,0.02739068,235.14,235.1,7.51650343]
[1738296952721,0.02739068,235.14,235.1,0.03126917]
[1738296953620,0.02739068,235.14,235.1,7.51650343]
[1738296954011,4.28039068,235.14,235.1,7.51650343]
[1738296954212,0.02739068,235.14,235.1,0.03126917]
[1738296954622,4.2535,235.11,235.1,0.03126917]
[1738296960526,4.28049068,235.14,235.1,7.51650343]
[1738296960820,0.02739068,235.14,235.1,7.51650343]
[1738296961325,4.28039068,235.14,235.1,7.51650343]
[1738296964529,4.2533,235.12,235.1,0.03126917]
[1738296964729,7.48523426,235.13,235.1,0.03126917]
[1738296966225,4.2535,235.11,235.1,0.03126917]
[1738296966431,0.02739068,235.14,235.1,0.03126917]
[1738296967031,2.68739068,235.14,235.1,0.03126917]
[1738296967229,2.68739068,235.14,235.1,7.51650343]
[1738296967825,0.02739068,235.14,235.1,7.51650343]
[1738296969526,0.02739068,235.14,235.1,0.03126917]
[1738296970027,4.28039068,235.14,235.1,0.03126917]
[1738296970734,0.02739068,235.14,235.1,0.03126917]
[1738296974036,4.28029068,235.14,235.1,0.03126917]
[1738296975136,4.2531,235.13,235.1,0.03126917]
[1738296976129,4.2533,235.12,235.1,0.03126917]
[1738296976333,0.02739068,235.14,235.1,0.03126917]
[1738296976637,7.48523426,235.13,235.1,0.03126917]
[1738296978138,4.2535,235.11,235.1,0.03126917]
[1738296978637,11.73873426,235.11,235.1,0.03126917]
[1738296981942,0.02739068,235.14,235.1,0.03126917]
[1738296982140,4.2533,235.12,235.1,0.03126917]
[1738296984646,2.66,235.13,235.1,0.03126917]
[1738296985744,0.02739068,235.14,235.1,0.03126917]
[1738296985745,0.02739068,235.14,235.1,7.51650343]
[1738296987341,4.28039068,235.14,235.1,7.51650343]
[1738296987846,4.28039068,235.14,235.1,0.03126917]
[1738296987847,0.02739068,235.14,235.1,0.03126917]
[1738296988047,4.2533,235.12,235.1,0.03126917]
[1738296988242,0.02739068,235.14,235.1,0.03126917]
[1738296988945,4.2534,235.12,235.1,0.03126917]
[1738296990047,0.02739068,235.14,235.1,0.03126917]
[1738296991143,4.2533,235.12,235.1,0.03126917]
[1738296994841,0.02739068,235.14,235.1,0.03126917]
[1738296996252,4.2531,235.13,235.1,0.03126917]
[1738296996547,0.02739068,235.14,235.1,0.03126917]
[1738296996845,7.48523426,235.13,235.1,0.03126917]
[1738296997247,7.48523426,235.11,235.1,0.03126917]
[1738296997448,11.73873426,235.11,235.1,0.03126917]
[1738296998551,4.2535,235.11,235.1,0.03126917]
[1738296999656,11.73853426,235.13,235.1,0.03126917]
[1738296999851,4.2533,235.13,235.1,0.03126917]
[1738297000153,0.02739068,235.14,235.1,0.03126917]
[1738297000952,4.2534,235.12,235.1,0.03126917]
[1738297001153,0.02739068,235.14,235.1,0.03126917]
[1738297001354,4.2535,235.11,235.1,0.03126917]
[1738297006855,11.73873426,235.11,235.1,0.03126917]
[1738297014766,4.2535,235.11,235.1,0.03126917]
[1738297018769,6.9133,235.13,235.1,0.03126917]
[1738297019070,2.66,235.13,235.1,0.03126917]
[1738297019471,4.2535,235.11,235.1,0.03126917]
[1738297032875,10.14523426,235.13,235.1,0.03126917]
[1738297033076,4.2533,235.12,235.1,0.03126917]
[1738297033882,10.14523426,235.13,235.1,0.03126917]
[1738297034078,11.73873426,235.11,235.1,0.03126917]
[1738297057302,4.2545,235.06,234.98,7.48523426]
[1738297057505,7.48523426,235.05,234.98,7.48523426]
[1738297057809,4.2545,235.06,235.0,7.48523426]
[1738297058411,0.03234142,235.05,235.0,7.48523426]
[1738297058710,0.03234142,235.05,235.02,7.48523426]
[1738297060011,0.03234142,235.05,235.04,7.48523426]
[1738297060311,2.66,235.1,235.04,7.48523426]
[1738297061210,6.9137,235.1,235.06,7.48523426]
[1738297061406,0.03030346,235.09,235.06,7.48523426]
[1738297070813,0.03030346,235.09,235.05,1.43508379]
[1738297073021,0.03030346,235.09,235.05,5.68968379]
[1738297074724,0.03030346,235.09,235.06,7.48523426]
[1738297075926,0.03030346,235.09,235.07,4.2542]
[1738297076221,0.03030346,235.09,235.06,7.48523426]
[1738297076423,0.03030346,235.09,235.08,11.73923426]
[1738297078121,5.83574424,235.21,235.16,4.2525]
[1738297078429,5.83574424,235.21,235.19,7.48523426]
[1738297079127,10.08764424,235.21,235.19,7.48523426]
[1738297079327,4.2519,235.21,235.19,7.48523426]
[1738297079522,4.2519,235.21,235.18,0.02994477]
[1738297080528,0.03142229,235.22,235.18,0.02994477]
[1738297083729,0.03142229,235.22,235.18,4.28214477]
[1738297085527,0.03142229,235.22,235.18,0.02994477]
[1738297085733,7.48523426,235.2,235.18,0.02994477]
[1738297086132,4.252,235.19,235.18,0.02994477]
[1738297090333,4.2524,235.17,235.1,4.2536]
[1738297090633,7.48523426,235.16,235.1,4.2536]
[1738297091631,0.03196831,235.15,235.11,0.02740854]
[1738297093635,4.28476831,235.15,235.11,0.02740854]
[1738297094637,4.253,235.14,235.11,0.02740854]
[1738297098137,0.03196831,235.15,235.11,0.02740854]
[1738297098349,4.28476831,235.15,235.11,4.28090854]
[1738297101140,0.03196831,235.15,235.11,0.02740854]
[1738297101536,7.48523426,235.13,235.11,0.02740854]
[1738297101837,4.2533,235.12,235.11,0.02740854]
[1738297105639,4.2531,235.14,235.11,0.02740854]
[1738297105843,0.03196831,235.15,235.11,7.5126428]
[1738297107145,0.03196831,235.15,235.11,11.7660428]
[1738297108940,0.03196831,235.15,235.11,7.5126428]
[1738297109145,4.253,235.14,235.11,7.5126428]
[1738297111148,4.2533,235.12,235.11,0.02740854]
[1738297114653,0.03196831,235.15,235.11,7.5126428]
[1738297114954,0.03196831,235.15,235.11,0.02740854]
[1738297116046,4.28486831,235.15,235.11,0.02740854]
[1738297118359,4.28486831,235.15,235.11,4.28080854]
[1738297118647,0.03196831,235.15,235.13,7.48523426]
[1738297119244,0.03196831,235.15,235.14,4.2529]
[1738297119849,7.48523426,235.25,235.13,7.48523426]
[1738297120045,7.48523426,235.27,235.18,7.48523426]
[1738297120654,7.48523426,235.27,235.2,7.48523426]
[1738297120954,7.48523426,235.29,235.22,7.48523426]
[1738297121249,0.03188022,235.26,235.22,7.48523426]
[1738297123949,4.251,235.25,235.21,0.03081067]
[1738297124152,7.48523426,235.23,235.21,0.03081067]
[1738297124552,11.73663426,235.23,235.21,0.03081067]
[1738297125256,4.2515,235.22,235.21,0.03081067]
[1738297126754,7.48523426,235.23,235.21,0.03081067]
[1738297127357,4.2515,235.22,235.21,0.03081067]
[1738297134169,7.48523426,235.23,235.21,0.03081067]
[1738297134170,4.2513,235.24,235.21,0.03081067]
[1738297134661,7.48523426,235.25,235.21,0.03081067]
[1738297134962,4.28278022,235.26,235.21,0.03081067]
[1738297135862,0.03188022,235.26,235.21,7.51604493]
[1738297136160,0.03188022,235.26,235.22,4.2513]
[1738297137162,4.2515,235.22,235.21,0.03081067]
[1738297137464,11.73673426,235.22,235.21,0.03081067]
[1738297138858,0.03188022,235.26,235.21,0.03081067]
[1738297138859,11.73643426,235.24,235.21,0.03081067]
[1738297139362,7.48523426,235.22,235.21,0.03081067]
[1738297139762,11.73673426,235.22,235.21,0.03081067]
[1738297140361,7.48523426,235.22,235.21,0.03081067]
[1738297142269,11.73673426,235.22,235.21,0.03081067]
[1738297149874,0.03188022,235.26,235.21,0.03081067]
[1738297150076,0.03188022,235.26,235.25,7.48523426]
[1738297151686,0.03188022,235.26,235.25,11.73623426]
[1738297154984,0.03188022,235.26,235.25,7.48523426]
[1738297159090,0.03188022,235.26,235.25,11.73623426]
[1738297164894,4.2484,235.4,235.25,7.48523426]
[1738297165096,7.48523426,235.43,235.35,7.48523426]
[1738297165507,4.2479,235.42,235.37,7.48523426]
[1738297165995,4.27547131,235.42,235.37,7.51636098]
[1738297166402,0.02757131,235.42,235.37,7.51636098]
[1738297169903,4.27547131,235.42,235.37,7.51636098]
[1738297172105,0.02757131,235.42,235.41,7.48523426]
[1738297179809,0.02757131,235.42,235.41,11.73333426]
[1738297180510,1.4572,235.59,235.51,4.2462]
[1738297180810,1.4572,235.59,235.56,7.48523426]
[1738297181007,5.702,235.59,235.56,7.48523426]
[1738297181606,5.702,235.59,235.55,0.03209921]
[1738297181813,5.702,235.59,235.54,7.48523426]
[1738297182109,5.73387849,235.59,235.54,7.51356423]
[1738297182905,4.2454,235.56,235.54,0.02832997]
[1738297183810,7.48523426,235.55,235.54,0.02832997]
[1738297185110,4.2465,235.5,235.46,7.48523426]
[1738297186210,4.27716736,235.5,235.46,7.51242705]
[1738297187009,0.03066736,235.5,235.46,7.51242705]
[1738297188014,4.27706736,235.5,235.46,7.51242705]
[1738297190216,4.2466,235.49,235.46,7.51242705]
[1738297193120,4.247,235.47,235.46,0.02719279]
[1738297197718,4.247,235.47,235.46,7.51242705]
[1738297198724,0.03066736,235.5,235.46,7.51242705]
[1738297198923,4.2468,235.49,235.46,7.51242705]
[1738297200027,4.2468,235.49,235.48,7.48523426]
[1738297201424,4.27706736,235.5,235.48,7.48523426]
[1738297202728,4.27706736,235.5,235.46,7.51242705]
[1738297202926,0.03066736,235.5,235.46,0.02719279]
[1738297203129,4.247,235.47,235.46,0.02719279]
[1738297203626,4.2468,235.48,235.46,0.02719279]
[1738297204723,0.03066736,235.5,235.46,0.02719279]
[1738297204930,4.247,235.47,235.46,0.02719279]
[1738297209523,4.27726736,235.5,235.46,7.51242705]
[1738297209727,0.03066736,235.5,235.48,7.48523426]
[1738297211133,0.03066736,235.5,235.49,4.2466]
[1738297211328,0.03066736,235.5,235.48,7.48523426]
[1738297216136,0.03066736,235.5,235.49,4.2466]
[1738297219444,1.3991,235.62,235.55,4.2455]
[1738297219643,1.3991,235.62,235.58,7.48523426]
[1738297220437,4.2445,235.61,235.58,7.48523426]
[1738297220644,4.2445,235.61,235.58,7.5149036]
[1738297221445,4.2445,235.61,235.58,0.02966934]
[1738297222041,4.2445,235.61,235.47,1.3603]
[1738297222042,7.48523426,235.61,235.54,7.48523426]
[1738297222239,1.4574,235.6,235.54,7.48523426]
[1738297222448,4.2452,235.58,235.54,7.48523426]
[1738297223144,0.03114579,235.58,235.54,7.51488513]
[1738297223342,0.03114579,235.58,235.56,7.48523426]
[1738297227049,0.03114579,235.58,235.57,4.2452]
[1738297228549,0.03114579,235.58,235.56,7.48523426]
[1738297230745,4.2452,235.57,235.56,7.48523426]
[1738297231050,7.48523426,235.73,235.56,7.48523426]
[1738297231245,7.48523426,235.73,235.65,7.48523426]
[1738297232249,0.03260803,235.71,235.67,0.02897876]
[1738297232451,0.03260803,235.71,235.67,7.51421302]
[1738297233251,4.2431,235.69,235.67,7.51421302]
[1738297234645,0.03260803,235.71,235.67,7.51421302]
[1738297234849,0.03260803,235.71,235.69,7.48523426]
[1738297237450,0.03260803,235.71,235.69,11.72813426]
[1738297237848,0.03260803,235.71,235.69,7.48523426]
[1738297238045,2.68,235.83,235.69,7.48523426]
[1738297238247,4.1459,235.85,235.8,7.48523426]
[1738297238452,8.3862,235.85,235.8,7.48523426]
[1738297238650,4.1459,235.85,235.8,7.48523426]
[1738297238860,4.1459,235.85,235.82,7.48523426]
[1738297239353,4.27031304,235.86,235.84,7.48523426]
[1738297239548,0.03031304,235.86,235.84,7.48523426]
[1738297240756,0.03031304,235.86,235.84,11.64896452]
[1738297245059,1.3503,235.97,235.84,11.64896452]
[1738297245258,2.68,236.01,235.92,11.64896452]
[1738297245655,2.7735,236.02,235.92,11.64896452]
[1738297245656,5.4535,236.02,235.92,11.64896452]
[1738297245958,4.2379,235.98,235.92,11.64896452]
[1738297246158,4.2379,235.98,235.95,0.02751862]
[1738297246357,0.03214605,235.99,235.95,0.02751862]
[1738297248055,4.238,235.97,235.95,0.02751862]
[1738297250757,4.2382,235.96,235.95,0.02751862]
[1738297255460,4.2378,235.98,235.95,0.02751862]
[1738297256861,0.03214605,235.99,235.95,0.02751862]
[1738297260565,0.03214605,235.99,235.95,7.4779702]
[1738297267772,4.26974605,235.99,235.95,7.4779702]
[1738297271778,7.45045158,236.13,235.98,7.45045158]
[1738297271977,0.77874411,236.12,236.08,7.45045158]
[1738297272177,10.70165664,236.16,236.08,7.45045158]
[1738297272377,8.22915171,236.15,236.08,7.45045158]
[1738297272671,0.77870013,236.14,236.08,7.45045158]
[1738297272879,3.47870013,236.14,236.08,7.45045158]
[1738297273078,0.0284892,236.13,236.09,0.02912864]
[1738297275374,4.2354,236.12,236.09,0.02912864]
[1738297277182,4.2355,236.11,236.09,0.02912864]
[1738297278583,0.0284892,236.13,236.1,7.45045158]
[1738297278784,0.0284892,236.13,236.12,7.45045158]
[1738297285183,4.2635892,236.13,236.12,7.45045158]
[1738297295294,0.0284892,236.13,236.09,0.02912864]
[1738297295998,0.0284892,236.13,236.1,7.45045158]
[1738297297095,4.2355,236.11,236.1,7.45045158]